[Event "Early-Titled-Tuesday-Blitz-February-27-2024"]
[Site "Chess.com"]
[Date "2024.02.27"]
[Round "10"]
[White "Bkmzzzzz"]
[Black "Boorchess"]
[Result "1/2-1/2"]
[WhiteElo "2394"]
[BlackElo "2533"]
[TimeControl "180+1"]
[EndTime "9:57:38 PST"]
[Termination "Game drawn by repetition"]

1. e4 {[%clk 0:03:00.9]} 1... e5 {[%clk 0:03:00.2]} 2. Nf3 {[%clk 0:03:01]} 2...
Nf6 {[%clk 0:03:00.1]} 3. Nc3 {[%clk 0:03:00.8]} 3... Nc6 {[%clk 0:02:59.6]} 4.
d4 {[%clk 0:03:01]} 4... exd4 {[%clk 0:02:59.8]} 5. Nxd4 {[%clk 0:03:01.8]} 5...
Bb4 {[%clk 0:02:59.9]} 6. Nxc6 {[%clk 0:03:01.9]} 6... bxc6 {[%clk 0:03:00.6]}
7. Bd3 {[%clk 0:03:02.1]} 7... O-O {[%clk 0:03:00.7]} 8. O-O {[%clk 0:03:01.3]}
8... Re8 {[%clk 0:03:00.7]} 9. Bg5 {[%clk 0:03:00.5]} 9... h6 {[%clk 0:03:00.5]}
10. Bh4 {[%clk 0:03:00.2]} 10... d6 {[%clk 0:02:53.7]} 11. Na4 {[%clk
0:02:59.3]} 11... g5 {[%clk 0:02:33.1]} 12. Bg3 {[%clk 0:02:58.5]} 12... Nxe4
{[%clk 0:02:30.6]} 13. Qh5 {[%clk 0:02:18.5]} 13... Kg7 {[%clk 0:02:21.4]} 14.
f4 {[%clk 0:01:22.8]} 14... Nf6 {[%clk 0:02:13.8]} 15. Qf3 {[%clk 0:01:13.7]}
15... g4 {[%clk 0:02:13.5]} 16. Qxc6 {[%clk 0:01:03.6]} 16... Bd7 {[%clk
0:02:10.7]} 17. Qc4 {[%clk 0:00:54.6]} 17... Rb8 {[%clk 0:02:00.8]} 18. Nc3
{[%clk 0:00:43.3]} 18... Bc5+ {[%clk 0:01:56.1]} 19. Kh1 {[%clk 0:00:42.7]}
19... Be6 {[%clk 0:01:54.8]} 20. Qa6 {[%clk 0:00:29.3]} 20... Qc8 {[%clk
0:01:43.3]} 21. Qxc8 {[%clk 0:00:24.9]} 21... Rexc8 {[%clk 0:01:43]} 22. Na4
{[%clk 0:00:25.2]} 22... Bb6 {[%clk 0:01:36.6]} 23. c3 {[%clk 0:00:25.6]} 23...
Bd5 {[%clk 0:01:36]} 24. b4 {[%clk 0:00:23.5]} 24... Re8 {[%clk 0:01:35.1]} 25.
Nxb6 {[%clk 0:00:23]} 25... axb6 {[%clk 0:01:34.1]} 26. Rfe1 {[%clk 0:00:23.1]}
26... Rxe1+ {[%clk 0:01:31.6]} 27. Bxe1 {[%clk 0:00:22.8]} 27... b5 {[%clk
0:01:29.4]} 28. Bd2 {[%clk 0:00:22.8]} 28... Be4 {[%clk 0:01:26.9]} 29. Be2
{[%clk 0:00:21.3]} 29... h5 {[%clk 0:01:23.5]} 30. Kg1 {[%clk 0:00:21.8]} 30...
Nd5 {[%clk 0:01:23.6]} 31. Kf2 {[%clk 0:00:20.9]} 31... Kg6 {[%clk 0:01:23.3]}
32. h3 {[%clk 0:00:19.9]} 32... f5 {[%clk 0:01:20]} 33. hxg4 {[%clk 0:00:19.9]}
33... hxg4 {[%clk 0:01:19.8]} 34. Rh1 {[%clk 0:00:20.6]} 34... c6 {[%clk
0:01:18.6]} 35. Ra1 {[%clk 0:00:18.7]} 35... Ra8 {[%clk 0:01:18.1]} 36. c4
{[%clk 0:00:18.7]} 36... bxc4 {[%clk 0:01:17.1]} 37. Bxc4 {[%clk 0:00:19.6]}
37... Ra3 {[%clk 0:01:16.2]} 38. Bb3 {[%clk 0:00:19.5]} 38... Nb6 {[%clk
0:01:09.5]} 39. Bc1 {[%clk 0:00:19.3]} 39... Ra8 {[%clk 0:01:09.2]} 40. a4
{[%clk 0:00:19.6]} 40... Bd5 {[%clk 0:01:09.4]} 41. Bc2 {[%clk 0:00:19.3]} 41...
Nc4 {[%clk 0:01:07.8]} 42. a5 {[%clk 0:00:19.3]} 42... Be6 {[%clk 0:01:07.2]}
43. Bb3 {[%clk 0:00:19.5]} 43... Rb8 {[%clk 0:01:05.1]} 44. a6 {[%clk
0:00:17.6]} 44... Ra8 {[%clk 0:01:04.5]} 45. a7 {[%clk 0:00:17.8]} 45... Kf7
{[%clk 0:01:02.3]} 46. Be3 {[%clk 0:00:18.3]} 46... Nxe3 {[%clk 0:01:00.6]} 47.
Bxe6+ {[%clk 0:00:17.1]} 47... Kxe6 {[%clk 0:01:00.7]} 48. Kxe3 {[%clk
0:00:17.9]} 48... Kd7 {[%clk 0:00:59]} 49. Kd4 {[%clk 0:00:17.2]} 49... Kc7
{[%clk 0:00:59.3]} 50. Rh1 {[%clk 0:00:17.7]} 50... Rxa7 {[%clk 0:00:59.1]} 51.
Rh5 {[%clk 0:00:17.5]} 51... Ra4 {[%clk 0:00:54.8]} 52. Kc3 {[%clk 0:00:17.7]}
52... Ra3+ {[%clk 0:00:54.6]} 53. Kc4 {[%clk 0:00:18.2]} 53... d5+ {[%clk
0:00:50.1]} 54. Kd4 {[%clk 0:00:17.3]} 54... Rb3 {[%clk 0:00:50]} 55. Rxf5
{[%clk 0:00:15.2]} 55... Rxb4+ {[%clk 0:00:50.2]} 56. Kd3 {[%clk 0:00:15.2]}
56... g3 {[%clk 0:00:48.4]} 57. Rg5 {[%clk 0:00:14.5]} 57... Rxf4 {[%clk
0:00:48.1]} 58. Rxg3 {[%clk 0:00:15.1]} 58... Kb6 {[%clk 0:00:48.3]} 59. Rg8
{[%clk 0:00:14.3]} 59... Kc5 {[%clk 0:00:48.4]} 60. g4 {[%clk 0:00:14.7]} 60...
Rf3+ {[%clk 0:00:48.3]} 61. Ke2 {[%clk 0:00:14.2]} 61... Rf7 {[%clk 0:00:47.5]}
62. g5 {[%clk 0:00:14.5]} 62... Kd4 {[%clk 0:00:47.8]} 63. g6 {[%clk 0:00:14.9]}
63... Re7+ {[%clk 0:00:48.1]} 64. Kd2 {[%clk 0:00:14.7]} 64... c5 {[%clk
0:00:47.6]} 65. g7 {[%clk 0:00:14.9]} 65... c4 {[%clk 0:00:47.1]} 66. Kc2 {[%clk
0:00:15.1]} 66... Ra7 {[%clk 0:00:46.6]} 67. Kb2 {[%clk 0:00:14.8]} 67... c3+
{[%clk 0:00:46.2]} 68. Kc2 {[%clk 0:00:14.1]} 68... Rb7 {[%clk 0:00:45.7]} 69.
Kc1 {[%clk 0:00:13]} 69... Ra7 {[%clk 0:00:43.3]} 70. Kc2 {[%clk 0:00:12.9]}
70... Rc7 {[%clk 0:00:43.3]} 71. Kc1 {[%clk 0:00:12.9]} 71... c2 {[%clk
0:00:43.5]} 72. Re8 {[%clk 0:00:10.7]} 72... Rxg7 {[%clk 0:00:40.3]} 73. Kxc2
{[%clk 0:00:11.3]} 73... Rg2+ {[%clk 0:00:39.5]} 74. Kc1 {[%clk 0:00:09.7]}
74... Kd3 {[%clk 0:00:38.9]} 75. Rh8 {[%clk 0:00:10.3]} 75... Rg1+ {[%clk
0:00:38.1]} 76. Kb2 {[%clk 0:00:10]} 76... d4 {[%clk 0:00:38.3]} 77. Rh3+ {[%clk
0:00:10.4]} 77... Kd2 {[%clk 0:00:37.9]} 78. Rh2+ {[%clk 0:00:10.4]} 78... Ke3
{[%clk 0:00:37.4]} 79. Rh3+ {[%clk 0:00:10]} 79... Ke2 {[%clk 0:00:37.3]} 80.
Rh2+ {[%clk 0:00:10.3]} 80... Ke3 {[%clk 0:00:37.2]} 81. Rh3+ {[%clk 0:00:10.6]}
81... Kd2 {[%clk 0:00:35.8]} 82. Rh2+ {[%clk 0:00:11]} 82... Kd3 {[%clk
0:00:36.1]} 83. Rh3+ {[%clk 0:00:11.5]} 83... Kc4 {[%clk 0:00:36.4]} 84. Kc2
{[%clk 0:00:11.7]} 84... Rg2+ {[%clk 0:00:36.5]} 85. Kc1 {[%clk 0:00:11.7]}
85... Rf2 {[%clk 0:00:36.7]} 86. Rg3 {[%clk 0:00:11.2]} 86... Re2 {[%clk
0:00:37.1]} 87. Rh3 {[%clk 0:00:11.5]} 87... Ra2 {[%clk 0:00:36.7]} 88. Kb1
{[%clk 0:00:11.2]} 88... Rd2 {[%clk 0:00:36.2]} 89. Kc1 {[%clk 0:00:11.7]} 89...
Rd3 {[%clk 0:00:36.6]} 90. Rh8 {[%clk 0:00:11.7]} 90... Rg3 {[%clk 0:00:36]} 91.
Kc2 {[%clk 0:00:09]} 91... Rg2+ {[%clk 0:00:35]} 92. Kc1 {[%clk 0:00:09.6]}
92... Kc3 {[%clk 0:00:35.5]} 93. Rc8+ {[%clk 0:00:08.3]} 93... Kd3 {[%clk
0:00:35.6]} 94. Rh8 {[%clk 0:00:09.1]} 94... Rg1+ {[%clk 0:00:35.8]} 95. Kb2
{[%clk 0:00:08.8]} 95... Re1 {[%clk 0:00:35.9]} 96. Rh3+ {[%clk 0:00:08.1]}
96... Re3 {[%clk 0:00:35.7]} 97. Rh8 {[%clk 0:00:08.5]} 97... Kd2 {[%clk
0:00:35.6]} 98. Rh2+ {[%clk 0:00:08.5]} 98... Re2 {[%clk 0:00:35.5]} 99. Rh3
{[%clk 0:00:08.1]} 99... d3 {[%clk 0:00:35.6]} 100. Kb3 {[%clk 0:00:08.4]}
100... Rg2 {[%clk 0:00:33.4]} 101. Kc4 {[%clk 0:00:04.7]} 101... Rg4+ {[%clk
0:00:30.3]} 102. Kb3 {[%clk 0:00:05.3]} 102... Re4 {[%clk 0:00:25.7]} 103. Rh2+
{[%clk 0:00:05.4]} 103... Re2 {[%clk 0:00:25.6]} 104. Rh3 {[%clk 0:00:06.1]}
104... Re3 {[%clk 0:00:25.7]} 105. Rh2+ {[%clk 0:00:06.5]} 105... Kd1 {[%clk
0:00:23.5]} 106. Rh1+ {[%clk 0:00:06.4]} 106... Re1 {[%clk 0:00:23.2]} 107. Rh2
{[%clk 0:00:05.5]} 107... Re2 {[%clk 0:00:20.4]} 108. Rh1+ {[%clk 0:00:05.2]}
108... Kd2 {[%clk 0:00:20.7]} 109. Rh3 {[%clk 0:00:05.2]} 1/2-1/2

[Event "Early-Titled-Tuesday-Blitz-February-27-2024"]
[Site "Chess.com"]
[Date "2024.02.27"]
[Round "10"]
[White "LLariMarc"]
[Black "ATM622"]
[Result "0-1"]
[WhiteElo "2382"]
[BlackElo "2535"]
[TimeControl "180+1"]
[EndTime "9:57:50 PST"]
[Termination "ATM622 won by checkmate"]

1. d4 {[%clk 0:03:00.9]} 1... Nf6 {[%clk 0:02:58.7]} 2. Nf3 {[%clk 0:03:01.4]}
2... e6 {[%clk 0:02:58.7]} 3. Bg5 {[%clk 0:03:02.1]} 3... d5 {[%clk 0:02:57.8]}
4. e3 {[%clk 0:03:02.5]} 4... Be7 {[%clk 0:02:57.5]} 5. Nbd2 {[%clk 0:03:03]}
5... O-O {[%clk 0:02:57.2]} 6. Bd3 {[%clk 0:03:02.4]} 6... Nbd7 {[%clk
0:02:56.3]} 7. O-O {[%clk 0:03:02.4]} 7... c5 {[%clk 0:02:50.5]} 8. c3 {[%clk
0:03:02.3]} 8... b6 {[%clk 0:02:50]} 9. Qe2 {[%clk 0:03:02]} 9... Bb7 {[%clk
0:02:44.8]} 10. a4 {[%clk 0:03:01.8]} 10... Rc8 {[%clk 0:02:44.4]} 11. Rfe1
{[%clk 0:03:00.6]} 11... Ne4 {[%clk 0:02:41.2]} 12. Bxe7 {[%clk 0:02:59.5]}
12... Qxe7 {[%clk 0:02:41.8]} 13. a5 {[%clk 0:02:58.4]} 13... c4 {[%clk
0:02:36.6]} 14. Bc2 {[%clk 0:02:58]} 14... b5 {[%clk 0:02:37]} 15. Nxe4 {[%clk
0:02:55.1]} 15... dxe4 {[%clk 0:02:37]} 16. Nd2 {[%clk 0:02:55.7]} 16... f5
{[%clk 0:02:33.8]} 17. Nf1 {[%clk 0:02:55.9]} 17... e5 {[%clk 0:02:31.1]} 18.
dxe5 {[%clk 0:02:55.1]} 18... Nxe5 {[%clk 0:02:30.4]} 19. Red1 {[%clk 0:02:48]}
19... Qh4 {[%clk 0:02:24.7]} 20. Kh1 {[%clk 0:02:46.4]} 20... Nd3 {[%clk
0:02:21.7]} 21. Bxd3 {[%clk 0:02:46.2]} 21... exd3 {[%clk 0:02:21.5]} 22. Qe1
{[%clk 0:02:46]} 22... Qh3 {[%clk 0:02:16.3]} 23. f3 {[%clk 0:02:45.2]} 23...
Bxf3 {[%clk 0:02:07.6]} 24. gxf3 {[%clk 0:02:42.8]} 24... Qxf3+ {[%clk
0:02:08.5]} 25. Kg1 {[%clk 0:02:43.1]} 25... Rc6 {[%clk 0:02:04.3]} 26. Qf2
{[%clk 0:02:42.7]} 26... Rg6+ {[%clk 0:02:01.2]} 27. Ng3 {[%clk 0:02:43.1]}
27... Qd5 {[%clk 0:01:55.6]} 28. Qg2 {[%clk 0:02:40.5]} 28... Qe5 {[%clk
0:01:54.5]} 29. Qf3 {[%clk 0:02:38]} 29... h5 {[%clk 0:01:49.7]} 30. Kh1 {[%clk
0:02:36.4]} 30... h4 {[%clk 0:01:49.7]} 31. Nf1 {[%clk 0:02:36.1]} 31... h3
{[%clk 0:01:45.2]} 32. Rd2 {[%clk 0:02:31.5]} 32... Qe4 {[%clk 0:01:42.8]} 33.
Qxe4 {[%clk 0:02:31.4]} 33... fxe4 {[%clk 0:01:42.7]} 34. Ng3 {[%clk 0:02:29.7]}
34... Rf3 {[%clk 0:01:42]} 35. Re1 {[%clk 0:02:29.8]} 35... Ra6 {[%clk
0:01:35.8]} 36. Nxe4 {[%clk 0:02:28.6]} 36... Rxa5 {[%clk 0:01:36.1]} 37. Ng5
{[%clk 0:02:27]} 37... Rxe3 {[%clk 0:01:34.5]} 38. Rdd1 {[%clk 0:02:16]} 38...
Rxe1+ {[%clk 0:01:34.5]} 39. Rxe1 {[%clk 0:02:16.9]} 39... g6 {[%clk 0:01:35]}
40. Nxh3 {[%clk 0:02:07.6]} 40... Ra2 {[%clk 0:01:34.5]} 41. Rb1 {[%clk
0:02:06.7]} 41... b4 {[%clk 0:01:13]} 42. cxb4 {[%clk 0:02:04.1]} 42... Rxb2
{[%clk 0:01:06.3]} 43. Rxb2 {[%clk 0:01:47.3]} 43... c3 {[%clk 0:01:06.3]} 44.
Rd2 {[%clk 0:01:25.3]} 44... c2 {[%clk 0:00:44.9]} 45. Rxd3 {[%clk 0:01:13.8]}
45... c1=Q+ {[%clk 0:00:44.6]} 46. Kg2 {[%clk 0:01:14]} 46... Qb2+ {[%clk
0:00:42]} 47. Nf2 {[%clk 0:01:14.3]} 47... Qa2 {[%clk 0:00:36.3]} 48. Kg3 {[%clk
0:01:06.1]} 48... Kf7 {[%clk 0:00:34.6]} 49. h4 {[%clk 0:01:03.7]} 49... Ke6
{[%clk 0:00:28.5]} 50. Re3+ {[%clk 0:01:02.8]} 50... Kd5 {[%clk 0:00:25.4]} 51.
Nh3 {[%clk 0:01:02.2]} 51... Kd4 {[%clk 0:00:20.3]} 52. Rf3 {[%clk 0:01:00.5]}
52... Qd2 {[%clk 0:00:18]} 53. Nf4 {[%clk 0:00:58.7]} 53... Qe1+ {[%clk
0:00:17.7]} 54. Kg4 {[%clk 0:00:59]} 54... Qe4 {[%clk 0:00:11.9]} 55. Rf1 {[%clk
0:00:48.9]} 55... Qf5+ {[%clk 0:00:10.2]} 56. Kg3 {[%clk 0:00:49]} 56... Kc4
{[%clk 0:00:10.2]} 57. Ra1 {[%clk 0:00:46]} 57... Qd7 {[%clk 0:00:05.5]} 58.
Nxg6 {[%clk 0:00:36.6]} 58... Qd3+ {[%clk 0:00:05.6]} 59. Kh2 {[%clk 0:00:32]}
59... Qe2+ {[%clk 0:00:03.9]} 60. Kg3 {[%clk 0:00:30]} 60... Qd3+ {[%clk
0:00:04]} 61. Kh2 {[%clk 0:00:29.3]} 61... Qc2+ {[%clk 0:00:03.2]} 62. Kh1
{[%clk 0:00:24.5]} 62... Qe4+ {[%clk 0:00:03.1]} 63. Kh2 {[%clk 0:00:24.6]}
63... Qxg6 {[%clk 0:00:02.4]} 64. Rxa7 {[%clk 0:00:24.4]} 64... Qd6+ {[%clk
0:00:02.5]} 65. Kh3 {[%clk 0:00:22.9]} 65... Qd2 {[%clk 0:00:02.4]} 66. Rg7
{[%clk 0:00:19.9]} 66... Qc3+ {[%clk 0:00:01.9]} 67. Rg3 {[%clk 0:00:20.4]}
67... Qe1 {[%clk 0:00:02]} 68. Rg4+ {[%clk 0:00:20.5]} 68... Kb5 {[%clk
0:00:02.3]} 69. Kg2 {[%clk 0:00:19.7]} 69... Qe2+ {[%clk 0:00:02.5]} 70. Kg3
{[%clk 0:00:19.9]} 70... Qe3+ {[%clk 0:00:02.9]} 71. Kg2 {[%clk 0:00:20.4]}
71... Qe2+ {[%clk 0:00:03.2]} 72. Kg3 {[%clk 0:00:20.8]} 72... Qf1 {[%clk
0:00:03.6]} 73. Rf4 {[%clk 0:00:20.4]} 73... Qg1+ {[%clk 0:00:03.8]} 74. Kf3
{[%clk 0:00:20.9]} 74... Qh2 {[%clk 0:00:04.1]} 75. Kg4 {[%clk 0:00:21]} 75...
Qg2+ {[%clk 0:00:04.4]} 76. Kf5 {[%clk 0:00:21.5]} 76... Qh3+ {[%clk 0:00:03.6]}
77. Kg5 {[%clk 0:00:21.4]} 77... Qg3+ {[%clk 0:00:04]} 78. Kf5 {[%clk
0:00:21.1]} 78... Qh2 {[%clk 0:00:02.6]} 79. Kg5 {[%clk 0:00:19.7]} 79... Kc6
{[%clk 0:00:03]} 80. h5 {[%clk 0:00:19.6]} 80... Qg3+ {[%clk 0:00:02.3]} 81. Kf5
{[%clk 0:00:17.9]} 81... Qh3+ {[%clk 0:00:02.3]} 82. Kg6 {[%clk 0:00:16.7]}
82... Kd6 {[%clk 0:00:02.4]} 83. h6 {[%clk 0:00:16.2]} 83... Qg3+ {[%clk
0:00:02.6]} 84. Kf5 {[%clk 0:00:15.9]} 84... Qd3+ {[%clk 0:00:02.8]} 85. Kg5
{[%clk 0:00:15.6]} 85... Ke6 {[%clk 0:00:02.7]} 86. Rf6+ {[%clk 0:00:15.5]}
86... Ke5 {[%clk 0:00:02.5]} 87. Rf8 {[%clk 0:00:12.3]} 87... Qg3+ {[%clk
0:00:01.9]} 88. Kh5 {[%clk 0:00:12.6]} 88... Qh3+ {[%clk 0:00:02.3]} 89. Kg6
{[%clk 0:00:12.8]} 89... Qg4+ {[%clk 0:00:02.6]} 90. Kh7 {[%clk 0:00:12.9]}
90... Ke6 {[%clk 0:00:02.9]} 91. Rg8 {[%clk 0:00:12.2]} 91... Qf5+ {[%clk
0:00:02.6]} 92. Kh8 {[%clk 0:00:10.6]} 92... Qf6+ {[%clk 0:00:02.7]} 93. Kh7
{[%clk 0:00:09.8]} 93... Qf5+ {[%clk 0:00:03.1]} 94. Kh8 {[%clk 0:00:09.1]}
94... Kf7 {[%clk 0:00:03.4]} 95. Rg7+ {[%clk 0:00:09.1]} 95... Kf8 {[%clk
0:00:03.7]} 96. Rg8+ {[%clk 0:00:09.1]} 96... Kf7 {[%clk 0:00:04.2]} 97. Rg7+
{[%clk 0:00:09.8]} 97... Kf6 {[%clk 0:00:04.7]} 98. h7 {[%clk 0:00:07.2]} 98...
Qe5 {[%clk 0:00:05]} 99. b5 {[%clk 0:00:05.4]} 99... Qxb5 {[%clk 0:00:03.3]}
100. Rg8 {[%clk 0:00:03.5]} 100... Qe5 {[%clk 0:00:02.3]} 101. Rf8+ {[%clk
0:00:03.4]} 101... Kg6+ {[%clk 0:00:02.6]} 102. Kg8 {[%clk 0:00:03.1]} 102...
Qg7# {[%clk 0:00:02.8]} 0-1

[Event "Early-Titled-Tuesday-Blitz-February-27-2024"]
[Site "Chess.com"]
[Date "2024.02.27"]
[Round "10"]
[White "HanSchut"]
[Black "ajian"]
[Result "1-0"]
[WhiteElo "2313"]
[BlackElo "2460"]
[TimeControl "180+1"]
[EndTime "9:57:54 PST"]
[Termination "HanSchut won by checkmate"]

1. e4 {[%clk 0:03:00.9]} 1... c5 {[%clk 0:02:59.7]} 2. Nf3 {[%clk 0:02:59.9]}
2... Nc6 {[%clk 0:02:58.9]} 3. d4 {[%clk 0:03:00.3]} 3... cxd4 {[%clk
0:02:59.8]} 4. Nxd4 {[%clk 0:03:00.8]} 4... Nf6 {[%clk 0:03:00.4]} 5. Nc3 {[%clk
0:03:01.1]} 5... e5 {[%clk 0:03:00.9]} 6. Ndb5 {[%clk 0:03:01.7]} 6... d6 {[%clk
0:03:01.4]} 7. Nd5 {[%clk 0:03:02.3]} 7... Nxd5 {[%clk 0:03:01.6]} 8. exd5
{[%clk 0:03:03.2]} 8... Nb8 {[%clk 0:03:02.5]} 9. Qf3 {[%clk 0:03:02.9]} 9... a6
{[%clk 0:03:01.4]} 10. Qa3 {[%clk 0:03:02.5]} 10... Be7 {[%clk 0:02:51.9]} 11.
Bg5 {[%clk 0:03:02.4]} 11... f6 {[%clk 0:02:49.9]} 12. Bd2 {[%clk 0:03:02.3]}
12... O-O {[%clk 0:02:48.7]} 13. Bb4 {[%clk 0:03:02.4]} 13... Qd7 {[%clk
0:02:39.9]} 14. Bd3 {[%clk 0:02:46.6]} 14... b6 {[%clk 0:02:16.2]} 15. Bd2
{[%clk 0:02:21.4]} 15... Bb7 {[%clk 0:02:11.5]} 16. Nc3 {[%clk 0:02:21.4]} 16...
f5 {[%clk 0:01:56.7]} 17. f3 {[%clk 0:02:16.3]} 17... Qc7 {[%clk 0:01:36.8]} 18.
O-O {[%clk 0:01:44.6]} 18... Nd7 {[%clk 0:01:35.2]} 19. b4 {[%clk 0:01:31.4]}
19... g6 {[%clk 0:01:07.3]} 20. Qb3 {[%clk 0:01:29.6]} 20... Bf6 {[%clk
0:01:03]} 21. Rae1 {[%clk 0:01:17.7]} 21... Rac8 {[%clk 0:00:58.5]} 22. Ne2
{[%clk 0:00:55.6]} 22... b5 {[%clk 0:00:44.9]} 23. a4 {[%clk 0:00:54.6]} 23...
bxa4 {[%clk 0:00:39.3]} 24. Qxa4 {[%clk 0:00:54.9]} 24... Nb6 {[%clk 0:00:39.9]}
25. Qb3 {[%clk 0:00:54.3]} 25... Bxd5 {[%clk 0:00:38.9]} 26. Qb1 {[%clk
0:00:47]} 26... Nc4 {[%clk 0:00:39]} 27. Bh6 {[%clk 0:00:39.8]} 27... Bg7 {[%clk
0:00:36.8]} 28. Bxg7 {[%clk 0:00:39.2]} 28... Kxg7 {[%clk 0:00:37.7]} 29. Qa1
{[%clk 0:00:32.1]} 29... Qb6+ {[%clk 0:00:36.1]} 30. Kh1 {[%clk 0:00:31.9]}
30... Ne3 {[%clk 0:00:27.8]} 31. Rg1 {[%clk 0:00:31.4]} 31... Nxc2 {[%clk
0:00:28]} 32. Bxc2 {[%clk 0:00:31]} 32... Rxc2 {[%clk 0:00:28.2]} 33. Nf4 {[%clk
0:00:31.4]} 33... Bf7 {[%clk 0:00:20.9]} 34. Nh3 {[%clk 0:00:29.3]} 34... h6
{[%clk 0:00:19.6]} 35. f4 {[%clk 0:00:28.7]} 35... Kh7 {[%clk 0:00:07.1]} 36.
fxe5 {[%clk 0:00:27.1]} 36... dxe5 {[%clk 0:00:08]} 37. Qxe5 {[%clk 0:00:27]}
37... Qxb4 {[%clk 0:00:07.3]} 38. Nf4 {[%clk 0:00:17.5]} 38... Re8 {[%clk
0:00:05.2]} 39. Qf6 {[%clk 0:00:17.1]} 39... Qc4 {[%clk 0:00:03.4]} 40. Rxe8
{[%clk 0:00:14.3]} 40... Bxe8 {[%clk 0:00:04.3]} 41. Ne6 {[%clk 0:00:12.8]}
41... Qc3 {[%clk 0:00:01.6]} 42. Qe7+ {[%clk 0:00:12]} 42... Kg8 {[%clk
0:00:01.7]} 43. Qxe8+ {[%clk 0:00:12.4]} 43... Kh7 {[%clk 0:00:02.4]} 44. Qe7+
{[%clk 0:00:12.9]} 44... Kh8 {[%clk 0:00:02.8]} 45. Nf8 {[%clk 0:00:12.1]} 45...
Kg8 {[%clk 0:00:02.7]} 46. Nxg6 {[%clk 0:00:11.5]} 46... Qg7 {[%clk 0:00:02.8]}
47. Qe6+ {[%clk 0:00:11.7]} 47... Qf7 {[%clk 0:00:02.6]} 48. Qxf7+ {[%clk
0:00:12.2]} 48... Kxf7 {[%clk 0:00:03.5]} 49. Ne5+ {[%clk 0:00:12.9]} 49... Ke6
{[%clk 0:00:03.5]} 50. Nf3 {[%clk 0:00:13.5]} 50... a5 {[%clk 0:00:04]} 51. Ra1
{[%clk 0:00:13.7]} 51... Rc5 {[%clk 0:00:04.1]} 52. h3 {[%clk 0:00:14]} 52...
Kd5 {[%clk 0:00:03.4]} 53. Ra4 {[%clk 0:00:12.9]} 53... Rb5 {[%clk 0:00:03.4]}
54. Kh2 {[%clk 0:00:12.5]} 54... Kc5 {[%clk 0:00:02.9]} 55. Kg3 {[%clk
0:00:12.4]} 55... Kb6 {[%clk 0:00:03.5]} 56. Kf4 {[%clk 0:00:12.1]} 56... Rb4+
{[%clk 0:00:02.7]} 57. Rxb4+ {[%clk 0:00:12]} 57... axb4 {[%clk 0:00:03.6]} 58.
Nd2 {[%clk 0:00:12.5]} 58... Kc5 {[%clk 0:00:03]} 59. Ke5 {[%clk 0:00:12.7]}
59... Kb5 {[%clk 0:00:03.6]} 60. Kd4 {[%clk 0:00:13.1]} 60... Ka4 {[%clk
0:00:03.9]} 61. Kc4 {[%clk 0:00:13.7]} 61... Ka3 {[%clk 0:00:04.7]} 62. g3
{[%clk 0:00:13.6]} 62... Ka4 {[%clk 0:00:05.6]} 63. h4 {[%clk 0:00:11.1]} 63...
Ka5 {[%clk 0:00:06.3]} 64. Nb3+ {[%clk 0:00:11.4]} 64... Ka4 {[%clk 0:00:06.3]}
65. Nc5+ {[%clk 0:00:12.3]} 65... Ka3 {[%clk 0:00:06.6]} 66. Nd3 {[%clk
0:00:11]} 66... b3 {[%clk 0:00:06.7]} 67. Kc3 {[%clk 0:00:11.6]} 67... Ka4
{[%clk 0:00:05]} 68. Kb2 {[%clk 0:00:11.4]} 68... Kb5 {[%clk 0:00:05.9]} 69.
Kxb3 {[%clk 0:00:11.2]} 69... Kc6 {[%clk 0:00:06]} 70. Kc2 {[%clk 0:00:12.1]}
70... Kd5 {[%clk 0:00:06.5]} 71. Kd2 {[%clk 0:00:12.1]} 71... Ke4 {[%clk
0:00:07.4]} 72. Ke2 {[%clk 0:00:11.4]} 72... h5 {[%clk 0:00:07.5]} 73. Nf4
{[%clk 0:00:10.9]} 73... Ke5 {[%clk 0:00:07.2]} 74. Nxh5 {[%clk 0:00:11.3]}
74... Ke4 {[%clk 0:00:08.1]} 75. Kf2 {[%clk 0:00:11.6]} 75... Ke5 {[%clk
0:00:09]} 76. Nf4 {[%clk 0:00:12.1]} 76... Kf6 {[%clk 0:00:09.3]} 77. Kf3 {[%clk
0:00:13]} 77... Kf7 {[%clk 0:00:09.7]} 78. Nd3 {[%clk 0:00:12.4]} 78... Kf6
{[%clk 0:00:10.2]} 79. Kf4 {[%clk 0:00:13.2]} 79... Kg6 {[%clk 0:00:10.7]} 80.
Nc5 {[%clk 0:00:12.3]} 80... Kh5 {[%clk 0:00:11.6]} 81. Ne6 {[%clk 0:00:11.9]}
81... Kh6 {[%clk 0:00:12.5]} 82. Nd4 {[%clk 0:00:12.4]} 82... Kh5 {[%clk
0:00:13.4]} 83. Nxf5 {[%clk 0:00:12.3]} 83... Kg6 {[%clk 0:00:13.7]} 84. g4
{[%clk 0:00:12.9]} 84... Kh7 {[%clk 0:00:14.6]} 85. Kg5 {[%clk 0:00:13.5]} 85...
Kg8 {[%clk 0:00:14.3]} 86. h5 {[%clk 0:00:14]} 86... Kh7 {[%clk 0:00:15.2]} 87.
Nh4 {[%clk 0:00:13.1]} 87... Kg7 {[%clk 0:00:16.1]} 88. h6+ {[%clk 0:00:12.8]}
88... Kh7 {[%clk 0:00:17]} 89. Kh5 {[%clk 0:00:13]} 89... Kh8 {[%clk 0:00:17.9]}
90. g5 {[%clk 0:00:13.6]} 90... Kg8 {[%clk 0:00:18.4]} 91. Kg6 {[%clk 0:00:14]}
91... Kh8 {[%clk 0:00:19.3]} 92. Kf6 {[%clk 0:00:13.8]} 92... Kg8 {[%clk
0:00:20.2]} 93. Ng6 {[%clk 0:00:13.6]} 93... Kh7 {[%clk 0:00:20.8]} 94. Nf8+
{[%clk 0:00:10.2]} 94... Kg8 {[%clk 0:00:21]} 95. Kg6 {[%clk 0:00:10.4]} 95...
Kh8 {[%clk 0:00:20.9]} 96. Kh5 {[%clk 0:00:10.3]} 96... Kg8 {[%clk 0:00:20.6]}
97. g6 {[%clk 0:00:10.8]} 97... Kh8 {[%clk 0:00:21.5]} 98. g7+ {[%clk
0:00:10.6]} 98... Kg8 {[%clk 0:00:22.2]} 99. Ng6 {[%clk 0:00:10.7]} 99... Kh7
{[%clk 0:00:22.6]} 100. Nf8+ {[%clk 0:00:10.8]} 100... Kg8 {[%clk 0:00:23]} 101.
Ng6 {[%clk 0:00:11.2]} 101... Kh7 {[%clk 0:00:23.5]} 102. Nf4 {[%clk 0:00:11.5]}
102... Kg8 {[%clk 0:00:23.8]} 103. Kg5 {[%clk 0:00:10.9]} 103... Kh7 {[%clk
0:00:24.2]} 104. Kf6 {[%clk 0:00:10.7]} 104... Kg8 {[%clk 0:00:23.3]} 105. h7+
{[%clk 0:00:11.2]} 105... Kxh7 {[%clk 0:00:23]} 106. Kf7 {[%clk 0:00:12.1]}
106... Kh6 {[%clk 0:00:23.2]} 107. Ng2 {[%clk 0:00:11.5]} 107... Kh5 {[%clk
0:00:18.7]} 108. g8=Q {[%clk 0:00:11.2]} 108... Kh6 {[%clk 0:00:17.7]} 109. Ne3
{[%clk 0:00:09.9]} 109... Kh5 {[%clk 0:00:17.3]} 110. Kf6 {[%clk 0:00:10.5]}
110... Kh4 {[%clk 0:00:17.7]} 111. Qg4# {[%clk 0:00:09.8]} 1-0